[Event "18th Charleroi Open-A 2019"]
[Site "Charleroi"]
[Date "2019.08.03"]
[Round "9.28"]
[White "Dierckens, Sarah"]
[Black "Miulescu, Gabriel"]
[Result "1/2-1/2"]
[ECO "B47"]
[WhiteElo "1770"]
[BlackElo "2020"]
[Annotator "NA"]
[PlyCount "41"]
[EventDate "2019.07.22"]
[EventType "swiss"]
[EventCountry "BEL"]
[SourceTitle "playchess.com"]
[Source "ChessBase"]
[SourceQuality "1"]
[TimeControl "40/5400+30:1800+30"]

1. e4 {[%emt 0:00:00]} c5 {[%emt 0:00:00]} 2. Nf3 {[%emt 0:00:00]} e6 {[%emt 0:00:00]} 3. d4 {[%emt 0:00:00]} cxd4 {[%emt 0:00:01]} 4. Nxd4 {[%emt 0:00:00]} Nc6 {[%emt 0:00:12]} 5. Nc3 {[%emt 0:00:33]} Qc7 {[%emt 0:00:12]} 6. Be2 {[%emt 0:02:59]} a6 {[%emt 0:00:23]} 7. Nxc6 {[%emt 0:03:08]} bxc6 {[%emt 0:00:11]} 8. f4 {[%emt 0:01:53]} Bc5 {[%emt 0:06:56]} 9. e5 {[%emt 0:05:12]} f5 {[%emt 0:02:51]} 10. Qd3 {[%emt 0:06:47]} a5 {[%emt 0:15:25]} 11. Qg3 {[%emt 0:01:23]} g6 {[%emt 0:03:08]} 12. Na4 {[%emt 0:00:32]} Bb4+ {[%emt 0:08:46]} 13. c3 {[%emt 0:01:22]} Bf8 {[%emt 0:01:23]} 14. Be3 {[%emt 0:02:41]} d5 {[%emt 0:08:40]} 15. exd6 {[%emt 0:12:35]} Bxd6 {[%emt 0:00:26]} 16. Rd1 {[%emt 0:00:06]} Nf6 {[%emt 0:02:58]} 17. Nb6 {[%emt 0:02:22]} Rb8 {[%emt 0:00:38]} 18. Nc4 {[%emt 0:00:05]} Be7 {[%emt 0:02:18]} 19. Bd4 {[%emt 0:00:50]} Ra8 {[%emt 0:05:25]} 20. Be5 {[%emt 0:01:41]} Qa7 {[%emt 0:00:24]} 21. Bd4 {[%emt 0:05:13]} 1/2-1/2

[Event "18th Charleroi Open-A 2019"]
[Site "Charleroi"]
[Date "2019.08.03"]
[Round "9.29"]
[White "Van Haelst, Raymond"]
[Black "Godde, Matthias"]
[Result "1-0"]
[ECO "A00"]
[WhiteElo "1947"]
[BlackElo "1989"]
[Annotator "NA"]
[PlyCount "73"]
[EventDate "2019.07.22"]
[EventType "swiss"]
[EventCountry "BEL"]
[SourceTitle "playchess.com"]
[Source "ChessBase"]
[SourceQuality "1"]
[TimeControl "40/5400+30:1800+30"]

1. e4 {[%emt 0:00:00]} c5 {[%emt 0:00:00]} 2. Ne2 {[%emt 0:00:00]} Nc6 {[%emt 0:00:00]} 3. Nbc3 {[%emt 0:00:00]} Nf6 {[%emt 0:00:26]} 4. g3 {[%emt 0:00:33]} g6 {[%emt 0:00:51]} 5. Bg2 {[%emt 0:00:06]} Bg7 {[%emt 0:00:10]} 6. O-O {[%emt 0:00:18]} O-O {[%emt 0:00:24]} 7. d4 {[%emt 0:00:53]} cxd4 {[%emt 0:01:35]} 8. Nxd4 {[%emt 0:00:36]} Nxe4 {[%emt 0:15:09]} 9. Nxc6 {[%emt 0:02:42]} Nxc3 {[%emt 0:01:03]} 10. Nxd8 {[%emt 0:00:09]} Nxd1 {[%emt 0:00:06]} 11. Nxb7 {[%emt 0:10:43]} Nxb2 {[%emt 0:05:28]} 12. Bxb2 {[%emt 0:04:26]} Bxb2 {[%emt 0:04:08]} 13. Rab1 {[%emt 0:00:28]} Be5 {[%emt 0:00:24]} 14. Rfe1 {[%emt 0:10:59]} Bc7 {[%emt 0:03:30]} 15. Rxe7 {[%emt 0:02:03]} Rb8 {[%emt 0:01:08]} 16. Rb3 {[%emt 0:00:34]} Kg7 {[%emt 0:07:47]} 17. c4 {[%emt 0:06:02]} Kf6 {[%emt 0:01:56]} 18. Re1 {[%emt 0:02:17]} d6 {[%emt 0:06:14]} 19. Rd1 {[%emt 0:03:34]} Ke7 {[%emt 0:02:01]} 20. Na5 {[%emt 0:11:14]} Rxb3 {[%emt 0:03:00]} 21. Nc6+ {[%emt 0:00:21]} Kf6 {[%emt 0:05:59]} 22. axb3 {[%emt 0:00:05]} Bg4 {[%emt 0:05:25]} 23. Rd4 {[%emt 0:15:03]} Bf5 {[%emt 0:04:23]} 24. Nxa7 {[%emt 0:03:28]} Re8 {[%emt 0:00:33]} 25. h3 {[%emt 0:01:11]} Re1+ {[%emt 0:03:16]} 26. Kh2 {[%emt 0:00:15]} Ke6 {[%emt 0:09:19]} 27. Nb5 {[%emt 0:04:33]} Bb8 {[%emt 0:00:17]} 28. Bd5+ {[%emt 0:01:25]} Kf6 {[%emt 0:01:33]} 29. Kg2 {[%emt 0:03:57]} Rb1 {[%emt 0:01:25]} 30. Rf4 {[%emt 0:02:03]} Ke7 {[%emt 0:08:25]} 31. Nd4 {[%emt 0:00:26]} Bd7 {[%emt 0:02:07]} 32. Rxf7+ {[%emt 0:00:23]} Ke8 {[%emt 0:00:06]} 33. Rxh7 {[%emt 0:03:34]} Ba7 {[%emt 0:00:13]} 34. Rh8+ {[%emt 0:00:17]} Ke7 {[%emt 0:00:06]} 35. Rh7+ {[%emt 0:00:13]} Ke8 {[%emt 0:00:02]} 36. Nc6 {[%emt 0:01:57]} Bd4 {[%emt 0:00:30]} 37. Re7+ {[%emt 0:02:12]} 1-0

[Event "18th Charleroi Open-A 2019"]
[Site "Charleroi"]
[Date "2019.08.03"]
[Round "9.30"]
[White "Guion, Geoffrey"]
[Black "Callier, Christophe"]
[Result "1/2-1/2"]
[ECO "B06"]
[WhiteElo "2006"]
[BlackElo "1986"]
[Annotator "NA"]
[PlyCount "41"]
[EventDate "2019.07.22"]
[EventType "swiss"]
[EventCountry "BEL"]
[SourceTitle "playchess.com"]
[Source "ChessBase"]
[SourceQuality "1"]
[TimeControl "40/5400+30:1800+30"]

1. e4 {[%emt 0:00:00]} g6 {[%emt 0:08:44]} 2. d4 {[%emt 0:00:39]} Nf6 {[%emt 0:00:02]} 3. Nc3 {[%emt 0:01:33]} d5 {[%emt 0:00:03]} 4. e5 {[%emt 0:01:02]} Ne4 {[%emt 0:00:01]} 5. Nxe4 {[%emt 0:01:31]} dxe4 {[%emt 0:00:02]} 6. Bc4 {[%emt 0:00:35]} Bg7 {[%emt 0:00:27]} 7. Ne2 {[%emt 0:00:29]} c5 {[%emt 0:00:05]} 8. c3 {[%emt 0:01:04]} Nc6 {[%emt 0:00:04]} 9. O-O {[%emt 0:01:23]} O-O {[%emt 0:00:11]} 10. h3 {[%emt 0:01:47]} Na5 {[%emt 0:00:38]} 11. Bb5 {[%emt 0:01:27]} Bd7 {[%emt 0:01:29]} 12. Bxd7 {[%emt 0:02:42]} Qxd7 {[%emt 0:00:09]} 13. Ng3 {[%emt 0:01:01]} cxd4 {[%emt 0:01:06]} 14. Qxd4 {[%emt 0:02:36]} Qxd4 {[%emt 0:01:53]} 15. cxd4 {[%emt 0:00:07]} f5 {[%emt 0:02:06]} 16. exf6 {[%emt 0:03:15]} Bxf6 {[%emt 0:00:13]} 17. Bd2 {[%emt 0:03:17]} Nc4 {[%emt 0:02:26]} 18. Bc3 {[%emt 0:03:07]} e3 {[%emt 0:05:04]} 19. fxe3 {[%emt 0:07:26]} Nxe3 {[%emt 0:00:18]} 20. Rf3 {[%emt 0:00:55]} Nd5 {[%emt 0:09:55]} 21. Ne4 {[%emt 0:02:25]} 1/2-1/2

[Event "18th Charleroi Open-A 2019"]
[Site "Charleroi"]
[Date "2019.08.03"]
[Round "9.31"]
[White "Denivet, Axel"]
[Black "Barbier, Astrid"]
[Result "0-1"]
[ECO "B34"]
[WhiteElo "1932"]
[BlackElo "1941"]
[Annotator "NA"]
[PlyCount "80"]
[EventDate "2019.07.22"]
[EventType "swiss"]
[EventCountry "BEL"]
[SourceTitle "playchess.com"]
[Source "ChessBase"]
[SourceQuality "1"]
[TimeControl "40/5400+30:1800+30"]

1. e4 {[%emt 0:00:00]} c5 {[%emt 0:00:00]} 2. Nf3 {[%emt 0:00:00]} g6 {[%emt 0:00:00]} 3. d4 {[%emt 0:00:00]} cxd4 {[%emt 0:00:00]} 4. Nxd4 {[%emt 0:00:00]} Nc6 {[%emt 0:00:00]} 5. Nc3 {[%emt 0:00:00]} Bg7 {[%emt 0:00:00]} 6. Be3 {[%emt 0:00:09]} Nf6 {[%emt 0:00:04]} 7. f3 {[%emt 0:00:59]} O-O {[%emt 0:01:52]} 8. Qd2 {[%emt 0:01:25]} d5 {[%emt 0:03:16]} 9. Nxc6 {[%emt 0:02:20]} bxc6 {[%emt 0:01:29]} 10. O-O-O {[%emt 0:01:31]} Be6 {[%emt 0:11:08]} 11. e5 {[%emt 0:09:48]} Nd7 {[%emt 0:02:05]} 12. f4 {[%emt 0:00:27]} Qa5 {[%emt 0:03:57]} 13. Kb1 {[%emt 0:04:37]} Rfb8 {[%emt 0:05:55]} 14. b3 {[%emt 0:08:30]} Nb6 {[%emt 0:10:04]} 15. Ne4 {[%emt 0:02:47]} Qxd2 {[%emt 0:04:17]} 16. Nxd2 {[%emt 0:01:15]} a5 {[%emt 0:07:35]} 17. Nf3 {[%emt 0:04:44]} Na4 {[%emt 0:09:47]} 18. Bd4 {[%emt 0:01:28]} c5 {[%emt 0:01:22]} 19. Bb2 {[%emt 0:01:45]} Nxb2 {[%emt 0:01:04]} 20. Kxb2 {[%emt 0:00:07]} f6 {[%emt 0:03:27]} 21. a4 {[%emt 0:04:24]} fxe5 {[%emt 0:02:10]} 22. fxe5 {[%emt 0:01:43]} c4 {[%emt 0:01:53]} 23. Ka2 {[%emt 0:01:06]} cxb3+ {[%emt 0:03:35]} 24. cxb3 {[%emt 0:00:23]} Rc8 {[%emt 0:05:29]} 25. Bd3 {[%emt 0:10:02]} Rc3 {[%emt 0:05:12]} 26. Nd4 {[%emt 0:05:17]} Bg4 {[%emt 0:01:07]} 27. Nb5 {[%emt 0:01:26]} Rc5 {[%emt 0:02:07]} 28. Rde1 {[%emt 0:01:46]} Rf8 {[%emt 0:01:08]} 29. Rhf1 {[%emt 0:05:25]} Rxf1 {[%emt 0:00:33]} 30. Bxf1 {[%emt 0:00:23]} Rc2+ {[%emt 0:00:37]} 31. Ka1 {[%emt 0:05:30]} Bh6 {[%emt 0:01:22]} 32. h3 {[%emt 0:01:59]} Bd2 {[%emt 0:05:43]} 33. Nd4 {[%emt 0:16:58]} Bc3+ {[%emt 0:01:24]} 34. Kb1 {[%emt 0:00:05]} Rb2+ {[%emt 0:00:28]} 35. Kc1 {[%emt 0:00:50]} Rf2 {[%emt 0:03:31]} 36. hxg4 {[%emt 0:03:50]} Bxe1 {[%emt 0:00:24]} 37. Bb5 {[%emt 0:02:54]} Bc3 {[%emt 0:00:52]} 38. Nc6 {[%emt 0:01:01]} Kf8 {[%emt 0:01:45]} 39. b4 {[%emt 0:01:44]} axb4 {[%emt 0:02:48]} 40. a5 {[%emt 0:01:22]} b3 0-1

[Event "18th Charleroi Open-A 2019"]
[Site "Charleroi"]
[Date "2019.08.03"]
[Round "9.32"]
[White "Lui, Eric"]
[Black "Verhalle, Elias"]
[Result "1-0"]
[ECO "C72"]
[WhiteElo "1884"]
[BlackElo "1983"]
[Annotator "NA"]
[PlyCount "83"]
[EventDate "2019.07.22"]
[EventType "swiss"]
[EventCountry "BEL"]
[SourceTitle "playchess.com"]
[Source "ChessBase"]
[SourceQuality "1"]
[TimeControl "40/5400+30:1800+30"]

1. e4 {[%emt 0:00:00]} e5 {[%emt 0:00:00]} 2. Nf3 {[%emt 0:00:32]} Nc6 {[%emt 0:00:00]} 3. Bb5 {[%emt 0:00:29]} a6 {[%emt 0:00:00]} 4. Ba4 {[%emt 0:00:32]} d6 {[%emt 0:00:00]} 5. O-O {[%emt 0:03:13]} Bg4 {[%emt 0:00:00]} 6. h3 {[%emt 0:00:16]} h5 {[%emt 0:00:00]} 7. Bxc6+ {[%emt 0:06:44]} bxc6 {[%emt 0:00:09]} 8. d3 {[%emt 0:00:36]} Qf6 {[%emt 0:08:46]} 9. hxg4 {[%emt 0:07:43]} hxg4 {[%emt 0:00:13]} 10. Ng5 {[%emt 0:00:21]} Qh6 {[%emt 0:00:27]} 11. Nh3 {[%emt 0:00:49]} Qh5 {[%emt 0:03:10]} 12. f4 {[%emt 0:06:24]} gxh3 {[%emt 0:00:36]} 13. Qxh5 {[%emt 0:00:22]} Rxh5 {[%emt 0:00:04]} 14. gxh3 {[%emt 0:07:02]} exf4 {[%emt 0:13:22]} 15. Bxf4 {[%emt 0:02:37]} Rb8 {[%emt 0:10:03]} 16. b3 {[%emt 0:01:01]} g5 {[%emt 0:11:35]} 17. Bd2 {[%emt 0:00:35]} Bg7 {[%emt 0:00:05]} 18. Bc3 {[%emt 0:00:22]} Bxc3 {[%emt 0:10:09]} 19. Nxc3 {[%emt 0:00:19]} Rxh3 {[%emt 0:14:26]} 20. Kg2 {[%emt 0:00:31]} Rh7 {[%emt 0:04:31]} 21. Rf5 {[%emt 0:04:48]} Rg7 {[%emt 0:04:48]} 22. Rh1 {[%emt 0:04:45]} Kd7 {[%emt 0:02:38]} 23. Ra5 {[%emt 0:03:48]} Ra8 {[%emt 0:00:32]} 24. Rh8 {[%emt 0:02:06]} Ra7 {[%emt 0:00:06]} 25. d4 {[%emt 0:05:40]} Ne7 {[%emt 0:01:29]} 26. Ne2 {[%emt 0:01:46]} d5 {[%emt 0:06:29]} 27. Ng3 {[%emt 0:04:56]} Ng6 {[%emt 0:02:03]} 28. Nf5 {[%emt 0:03:51]} Nh4+ {[%emt 0:02:05]} 29. Rxh4 {[%emt 0:00:50]} gxh4+ {[%emt 0:00:26]} 30. Nxg7 {[%emt 0:00:40]} dxe4 {[%emt 0:00:07]} 31. Re5 {[%emt 0:01:18]} Ra8 {[%emt 0:00:35]} 32. Kh3 {[%emt 0:01:05]} Rg8 {[%emt 0:00:22]} 33. Nf5 {[%emt 0:04:13]} Rg1 {[%emt 0:00:04]} 34. Rxe4 {[%emt 0:03:04]} Rh1+ {[%emt 0:01:51]} 35. Kg2 {[%emt 0:00:29]} Ra1 {[%emt 0:00:03]} 36. a4 {[%emt 0:00:30]} Rd1 {[%emt 0:00:08]} 37. Re7+ {[%emt 0:03:35]} Kc8 {[%emt 0:00:05]} 38. Re2 {[%emt 0:00:11]} Kb7 {[%emt 0:00:24]} 39. Kh3 {[%emt 0:00:21]} Rh1+ {[%emt 0:00:05]} 40. Rh2 {[%emt 0:01:02]} Re1 {[%emt 0:00:34]} 41. Kxh4 {[%emt 0:30:59]} Rf1 {[%emt 0:30:05]} 42. Kg4 {[%emt 0:01:01]} 1-0

[Event "18th Charleroi Open-A 2019"]
[Site "Charleroi"]
[Date "2019.08.03"]
[Round "9.32"]
[White "Lui, Eric"]
[Black "Verhalle, Elias"]
[Result "0-1"]
[ECO "C41"]
[WhiteElo "1884"]
[BlackElo "1983"]
[Annotator "NA"]
[PlyCount "120"]
[EventDate "2019.07.22"]
[EventType "swiss"]
[EventCountry "BEL"]
[SourceTitle "playchess.com"]
[Source "ChessBase"]
[SourceQuality "1"]
[TimeControl "40/5400+30:1800+30"]

1. e4 {[%emt 0:00:00]} d6 {[%emt 0:00:50]} 2. d4 {[%emt 0:00:00]} Nf6 {[%emt 0:00:30]} 3. Nc3 {[%emt 0:00:00]} e5 {[%emt 0:00:05]} 4. Nf3 {[%emt 0:00:09]} exd4 {[%emt 0:00:14]} 5. Nxd4 {[%emt 0:00:40]} Be7 {[%emt 0:00:09]} 6. Be2 {[%emt 0:11:15]} O-O {[%emt 0:00:10]} 7. O-O {[%emt 0:00:29]} Re8 {[%emt 0:00:07]} 8. Re1 {[%emt 0:03:17]} c5 {[%emt 0:13:20]} 9. Nf3 {[%emt 0:04:20]} Nc6 {[%emt 0:00:42]} 10. h3 {[%emt 0:11:40]} a6 {[%emt 0:06:24]} 11. a4 {[%emt 0:03:11]} h6 {[%emt 0:13:53]} 12. Bf1 {[%emt 0:02:51]} Be6 {[%emt 0:00:40]} 13. Nd5 {[%emt 0:05:48]} Bf8 {[%emt 0:09:09]} 14. c3 {[%emt 0:02:52]} g5 {[%emt 0:06:49]} 15. g3 {[%emt 0:17:24]} Bxd5 {[%emt 0:03:55]} 16. exd5 {[%emt 0:00:30]} Rxe1 {[%emt 0:00:07]} 17. Nxe1 {[%emt 0:00:31]} Ne5 {[%emt 0:03:27]} 18. Nf3 {[%emt 0:02:49]} Qe7 {[%emt 0:06:22]} 19. Be3 {[%emt 0:03:34]} Re8 {[%emt 0:01:37]} 20. Rb1 {[%emt 0:01:05]} Ne4 {[%emt 0:05:08]} 21. Nxe5 {[%emt 0:08:27]} Qxe5 {[%emt 0:00:10]} 22. g4 {[%emt 0:01:10]} f5 {[%emt 0:03:04]} 23. gxf5 {[%emt 0:01:31]} Qxf5 {[%emt 0:00:25]} 24. c4 {[%emt 0:01:09]} Bg7 {[%emt 0:01:35]} 25. Qg4 {[%emt 0:01:31]} Qxg4+ 26. hxg4 {[%emt 0:00:08]} Nf6 {[%emt 0:11:00]} 27. b4 {[%emt 0:04:29]} Nxg4 {[%emt 0:00:23]} 28. bxc5 {[%emt 0:00:36]} Nxe3 29. fxe3 {[%emt 0:00:28]} dxc5 {[%emt 0:01:33]} 30. Rxb7 {[%emt 0:02:56]} Rxe3 {[%emt 0:00:53]} 31. d6 {[%emt 0:01:17]} Bd4 {[%emt 0:04:14]} 32. d7 {[%emt 0:03:20]} Re8+ {[%emt 0:00:28]} 33. Kh1 {[%emt 0:00:37]} Rd8 {[%emt 0:02:27]} 34. Bh3 {[%emt 0:02:54]} h5 {[%emt 0:00:04]} 35. Rc7 {[%emt 0:01:32]} g4 {[%emt 0:00:09]} 36. Rc8 {[%emt 0:01:10]} Bf6 {[%emt 0:00:05]} 37. Bg2 {[%emt 0:00:29]} Be7 {[%emt 0:02:28]} 38. Bb7 {[%emt 0:01:03]} a5 {[%emt 0:01:13]} 39. Bc6 {[%emt 0:01:01]} Kg7 {[%emt 0:01:58]} 40. Kg2 {[%emt 0:00:34]} h4 {[%emt 0:02:05]} 41. Kf2 {[%emt 0:07:25]} Kf6 {[%emt 0:00:57]} 42. Ke3 {[%emt 0:01:44]} Ke5 {[%emt 0:00:09]} 43. Rxd8 {[%emt 0:03:15]} Bxd8 {[%emt 0:00:37]} 44. Bd5 {[%emt 0:00:30]} Bg5+ {[%emt 0:00:17]} 45. Kf2 {[%emt 0:00:09]} Kf4 {[%emt 0:00:10]} 46. Kg2 {[%emt 0:01:17]} h3+ {[%emt 0:01:04]} 47. Kh2 {[%emt 0:00:15]} Kf5 {[%emt 0:05:28]} 48. Kg3 {[%emt 0:05:55]} Bf4+ {[%emt 0:00:12]} 49. Kf2 {[%emt 0:02:52]} Bc7 {[%emt 0:00:06]} 50. d8=Q {[%emt 0:01:11]} Bxd8 {[%emt 0:00:13]} 51. Bc6 {[%emt 0:00:31]} Kf4 {[%emt 0:00:48]} 52. Bd7 {[%emt 0:00:41]} Bf6 {[%emt 0:01:04]} 53. Kg1 {[%emt 0:00:53]} Bd4+ {[%emt 0:00:33]} 54. Kh2 {[%emt 0:01:21]} Kg5 {[%emt 0:02:30]} 55. Be6 {[%emt 0:03:51]} Kh4 {[%emt 0:00:21]} 56. Kh1 {[%emt 0:00:11]} Bc3 {[%emt 0:01:12]} 57. Kg1 {[%emt 0:01:27]} g3 {[%emt 0:00:18]} 58. Bd5 {[%emt 0:00:35]} g2 {[%emt 0:00:33]} 59. Kh2 {[%emt 0:00:51]} Be5+ {[%emt 0:00:18]} 60. Kg1 {[%emt 0:00:11]} Bd4+ {[%emt 0:00:09]} 0-1